fUST/lending_fUST_20250704
["ID","MTS","AMOUNT","RATE_DAILY","PERIOD"]
[369408606,1751567440156,-460.0,0.00016712,2]
[369408608,1751567440166,-460.0,0.00016712,2]
[369408610,1751567440175,-460.0,0.00016712,2]
[369408612,1751567440188,-460.0,0.00016712,2]
[369408613,1751567440198,-1864.74,0.00016712,2]
[369408614,1751567440207,-460.0,0.00016712,2]
[369408615,1751567440216,-460.0,0.00016712,2]
[369408616,1751567440226,-617.61,0.00016712,2]
[369408617,1751567440237,-460.0,0.00016712,2]
[369408618,1751567440246,-1861.86,0.00016712,2]
[369408619,1751567440256,-460.0,0.00016712,2]
[369408620,1751567440267,-460.0,0.00016712,2]
[369408621,1751567440276,-460.0,0.00016712,2]
[369408622,1751567440285,-460.0,0.00016712,2]
[369408623,1751567440296,-460.0,0.00016712,2]
[369408624,1751567440305,-460.0,0.00016712,2]
[369408625,1751567440315,-1710.4,0.00016712,2]
[369408626,1751567440324,-460.0,0.00016712,2]
[369408627,1751567440332,-460.0,0.00016712,2]
[369408628,1751567440342,-1849.98,0.00016712,2]
[369408629,1751567440351,-460.0,0.00016712,2]
[369408631,1751567440360,-460.0,0.00016712,2]
[369408633,1751567440369,-460.0,0.00016712,2]
[369408635,1751567440378,-460.0,0.00016712,2]
[369408637,1751567440388,-460.0,0.00016712,2]
[369408639,1751567440397,-460.0,0.00016712,2]
[369408641,1751567440407,-460.0,0.00016712,2]
[369408643,1751567440416,-983.8,0.00016712,2]
[369408645,1751567440425,-460.0,0.00016712,2]
[369408647,1751567440435,-1354.72,0.00016712,2]
[369408649,1751567440444,-460.0,0.00016712,2]
[369408651,1751567440453,-460.0,0.00016712,2]
[369408653,1751567440463,-460.0,0.00016712,2]
[369408655,1751567440472,-711.2,0.00016712,2]
[369408657,1751567440481,-460.0,0.00016712,2]
[369408659,1751567440492,-460.0,0.00016712,2]
[369408661,1751567440501,-551.68,0.00016712,2]
[369408663,1751567440511,-460.0,0.00016712,2]
[369408665,1751567440520,-541.33,0.00016712,2]
[369408667,1751567440530,-460.0,0.00016712,2]
[369408669,1751567440540,-460.0,0.00016712,2]
[369408671,1751567440549,-1214.98,0.00016712,2]
[369408673,1751567440558,-285.89751404,0.00016712,2]
[369408675,1751567440568,-460.0,0.00016712,2]
[369408677,1751567440577,-460.0,0.00016712,2]
[369408679,1751567440587,-460.0,0.00016712,2]
[369408681,1751567440596,-2524.08,0.00016712,2]
[369408683,1751567440605,-460.0,0.00016712,2]
[369408684,1751567440614,-460.0,0.00016712,2]
[369408686,1751567440623,-2694.57,0.00016712,2]
[369408688,1751567440633,-460.0,0.00016712,2]
[369408690,1751567440642,-571.11,0.00016712,2]
[369408692,1751567440651,-460.0,0.00016712,2]
[369408694,1751567440661,-460.0,0.00016712,2]
[369408696,1751567440670,-460.0,0.00016712,2]
[369408698,1751567440679,-460.0,0.00016712,2]
[369408700,1751567440689,-460.0,0.00016712,2]
[369408702,1751567440699,-500.0,0.0001693,2]
[369408704,1751567440708,-245.0,0.0001693,2]
[369408706,1751567440717,-164.04737496,0.0001693,2]
[369408708,1751567440726,-245.0,0.0001693,2]
[369408710,1751567440735,-245.0,0.0001693,2]
[369408712,1751567440744,-151.0,0.0001693,2]
[369408714,1751567440753,-500.0,0.0001693,2]
[369408716,1751567440762,-420.0,0.00016955,2]
[369408718,1751567440771,-500.0,0.00016957,2]
[369408720,1751567440780,-151.0,0.00016957,2]
[369408722,1751567440790,-500.0,0.00016957,2]
[369408724,1751567440800,-500.0,0.00016985,2]
[369408726,1751567440810,-151.0,0.00016985,2]
[369408728,1751567440819,-500.0,0.00016985,2]
[369408730,1751567440831,-460.0,0.00016986,2]
[369408732,1751567440840,-460.0,0.00016986,2]
[369408734,1751567440849,-460.0,0.00016986,2]
[369408736,1751567440859,-460.0,0.00016986,2]
[369408738,1751567440868,-460.0,0.00016986,2]
[369408740,1751567440877,-195.93372151,0.00016986,2]
[369408742,1751567440887,-579.99,0.00016986,2]
[369408744,1751567440896,-213.69126395,0.00016986,2]
[369408746,1751567440905,-543.08406124,0.00016986,2]
[369408748,1751567440915,-460.0,0.00016986,2]
[369408750,1751567440924,-562.870575,0.00016986,2]
[369408752,1751567440933,-460.0,0.00016986,2]
[369408754,1751567440943,-460.0,0.00016986,2]
[369408756,1751567440952,-174.88,0.00016986,2]
[369408758,1751567440961,-460.0,0.00016986,2]
[369408760,1751567440970,-460.0,0.00016986,2]
[369408762,1751567440979,-460.0,0.00016986,2]
[369408764,1751567440988,-1068.95,0.00016986,2]
[369408766,1751567440997,-1055.49,0.00016986,2]
[369408768,1751567441006,-1922.23,0.00016986,2]
[369408770,1751567441016,-460.0,0.00016986,2]
[369408772,1751567441025,-635.56,0.00016986,2]
[369408774,1751567441036,-535.01,0.00016986,2]
[369408776,1751567441045,-693.32,0.00016986,2]
[369408778,1751567441055,-460.0,0.00016986,2]
[369408780,1751567441064,-460.0,0.00016986,2]
[369408782,1751567441074,-460.0,0.00016986,2]
[369408784,1751567441083,-460.0,0.00016986,2]
[369408786,1751567441092,-460.0,0.00016986,2]
[369408788,1751567441101,-460.0,0.00016986,2]
[369408790,1751567441110,-1864.74,0.00016986,2]
[369408792,1751567441120,-460.0,0.00016986,2]
[369408794,1751567441129,-617.61,0.00016986,2]
[369408796,1751567441139,-460.0,0.00016986,2]
[369408798,1751567441148,-1861.86,0.00016986,2]
[369408800,1751567441157,-460.0,0.00016986,2]
[369408802,1751567441168,-460.0,0.00016986,2]
[369408804,1751567441178,-460.0,0.00016986,2]
[369408806,1751567441189,-460.0,0.00016986,2]
[369408809,1751567441198,-460.0,0.00016986,2]
[369408811,1751567441208,-164.05406319,0.00016986,2]
[369408813,1751567441219,-1710.4,0.00016986,2]
[369408815,1751567441228,-460.0,0.00016986,2]
[369408816,1751567441237,-460.0,0.00016986,2]
[369408818,1751567441246,-1849.98,0.00016986,2]
[369408820,1751567441257,-460.0,0.00016986,2]
[369408822,1751567441266,-460.0,0.00016986,2]
[369408824,1751567441276,-460.0,0.00016986,2]
[369408827,1751567441285,-460.0,0.00016986,2]
[369408828,1751567441295,-460.0,0.00016986,2]
[369408830,1751567441304,-460.0,0.00016986,2]
[369408833,1751567441314,-460.0,0.00016986,2]
[369408835,1751567441323,-460.0,0.00016986,2]
[369408836,1751567441332,-983.8,0.00016986,2]
[369408838,1751567441342,-461.35832918,0.00016986,2]
[369408853,1751567441469,-893.36167082,0.00016986,2]
[369408855,1751567441478,-460.0,0.00016986,2]
[369408857,1751567441487,-460.0,0.00016986,2]
[369408859,1751567441496,-460.0,0.00016986,2]
[369408861,1751567441506,-711.2,0.00016986,2]
[369408863,1751567441515,-460.0,0.00016986,2]
[369408865,1751567441525,-460.0,0.00016986,2]
[369408867,1751567441534,-551.68,0.00016986,2]
[369408869,1751567441544,-460.0,0.00016986,2]
[369408871,1751567441553,-541.33,0.00016986,2]
[369408873,1751567441562,-460.0,0.00016986,2]
[369408875,1751567441572,-460.0,0.00016986,2]
[369408877,1751567441581,-1214.98,0.00016986,2]
[369408879,1751567441590,-460.0,0.00016986,2]
[369408881,1751567441599,-460.0,0.00016986,2]
[369408883,1751567441608,-460.0,0.00016986,2]
[369408885,1751567441617,-2524.08,0.00016986,2]
[369408887,1751567441626,-460.0,0.00016986,2]
[369408889,1751567441635,-460.0,0.00016986,2]
[369408891,1751567441645,-2694.57,0.00016986,2]
[369408893,1751567441654,-460.0,0.00016986,2]
[369408895,1751567441663,-571.11,0.00016986,2]
[369408897,1751567441672,-460.0,0.00016986,2]
[369408899,1751567441683,-460.0,0.00016986,2]
[369408901,1751567441692,-460.0,0.00016986,2]
[369408903,1751567441701,-460.0,0.00016986,2]
[369408905,1751567441711,-153.21834357,0.00017012,2]
[369408907,1751567441720,-151.0,0.00017012,2]
[369408909,1751567441729,-242.36967799,0.00017012,2]
[369408911,1751567441739,-151.0,0.0001704,2]
[369408913,1751567441748,-245.0,0.00017067,2]
[369408915,1751567441757,-500.0,0.00017078,2]
[369408917,1751567441766,-500.0,0.00017152,2]
[369408919,1751567441775,-500.0,0.00017152,2]
[369408921,1751567441784,-460.0,0.0001726,2]
[369408923,1751567441794,-460.0,0.0001726,2]
[369408925,1751567441803,-373.02,0.0001726,2]
[369408927,1751567441812,-460.0,0.0001726,2]
[369408928,1751567441822,-234.69943122,0.0001726,2]
[369408930,1751567441831,-579.99,0.0001726,2]
[369408932,1751567441840,-460.0,0.0001726,2]
[369408934,1751567441849,-460.0,0.0001726,2]
[369408936,1751567441858,-460.0,0.0001726,2]
[369408938,1751567441868,-460.0,0.0001726,2]
[369408940,1751567441877,-460.0,0.0001726,2]
[369408942,1751567441886,-460.0,0.0001726,2]
[369408944,1751567441896,-1068.95,0.0001726,2]
[369408946,1751567441905,-1055.49,0.0001726,2]
[369408948,1751567441915,-1922.23,0.0001726,2]
[369408950,1751567441924,-460.0,0.0001726,2]
[369408952,1751567441933,-635.56,0.0001726,2]
[369408954,1751567441943,-693.32,0.0001726,2]
[369408956,1751567441952,-460.0,0.0001726,2]
[369408958,1751567441961,-460.0,0.0001726,2]
[369408960,1751567441971,-460.0,0.0001726,2]
[369408962,1751567441980,-460.0,0.0001726,2]
[369408964,1751567441989,-460.0,0.0001726,2]
[369408966,1751567441998,-460.0,0.0001726,2]
[369408968,1751567442007,-1864.74,0.0001726,2]
[369408970,1751567442017,-460.0,0.0001726,2]
[369408972,1751567442026,-617.61,0.0001726,2]
[369408974,1751567442037,-607.48,0.0001726,2]
[369408976,1751567442047,-1861.86,0.0001726,2]
[369408978,1751567442057,-460.0,0.0001726,2]
[369408980,1751567442067,-451.19940939,0.0001726,2]
[369408983,1751567442078,-460.0,0.0001726,2]
[369408984,1751567442088,-248.79791305,0.0001726,2]
[369408986,1751567442099,-460.0,0.0001726,2]
[369408988,1751567442108,-1710.4,0.0001726,2]
[369408990,1751567442118,-460.0,0.0001726,2]
[369408992,1751567442128,-460.0,0.0001726,2]
[369408994,1751567442138,-1849.98,0.0001726,2]
[369408996,1751567442147,-460.0,0.0001726,2]
[369409013,1751567442297,-460.0,0.0001726,2]
[369409015,1751567442306,-460.0,0.0001726,2]
[369409017,1751567442316,-460.0,0.0001726,2]
[369409019,1751567442326,-460.0,0.0001726,2]
[369409021,1751567442335,-460.0,0.0001726,2]
[369409023,1751567442344,-460.0,0.0001726,2]
[369409025,1751567442353,-460.0,0.0001726,2]
[369409027,1751567442362,-983.8,0.0001726,2]
[369409029,1751567442372,-1354.72,0.0001726,2]
[369409031,1751567442381,-271.30588625,0.0001726,2]
[369409034,1751567442391,-711.2,0.0001726,2]
[369409037,1751567442400,-460.0,0.0001726,2]
[369409039,1751567442409,-460.0,0.0001726,2]
[369409041,1751567442418,-551.68,0.0001726,2]
[369409043,1751567442427,-460.0,0.0001726,2]
[369409045,1751567442437,-541.33,0.0001726,2]
[369409047,1751567442446,-460.0,0.0001726,2]
[369409049,1751567442455,-460.0,0.0001726,2]
[369409051,1751567442464,-1214.98,0.0001726,2]
[369409053,1751567442473,-460.0,0.0001726,2]
[369409054,1751567442482,-460.0,0.0001726,2]
[369409056,1751567442491,-69.94811591,0.0001726,2]
[369409069,1751567442605,-151.0,0.00016428,2]
[369409071,1751567442615,-151.0,0.00016428,2]
[369409073,1751567442624,-151.0,0.00016428,2]
[369409075,1751567442634,-151.0,0.00016428,2]
[369409077,1751567442643,-460.0,0.00016712,2]
[369409079,1751567442652,-460.0,0.00016986,2]
[369409082,1751567442661,-906.40000009,0.0001726,2]
[369409084,1751567442672,-1547.731884,0.0001726,2]
[369409085,1751567442681,-227.02,0.0001726,2]
[369409086,1751567442690,-460.0,0.0001726,2]
[369409087,1751567442699,-894.80067365,0.0001726,2]
[369409393,1751567445851,-151.0,0.00016428,2]
[369409395,1751567445860,-690.80544865,0.0001726,2]
[369409402,1751567445907,-1108.9638777,0.0001726,2]
[369409404,1751567445917,-460.0,0.0001726,2]
[369409406,1751567445926,-571.11,0.0001726,2]
[369409408,1751567445935,-460.0,0.0001726,2]
[369409410,1751567445944,-460.0,0.0001726,2]
[369409412,1751567445953,-460.0,0.0001726,2]
[369409414,1751567445963,-460.0,0.0001726,2]
[369409416,1751567445972,-460.0,0.0001726,2]
[369409418,1751567445981,-500.0,0.00017319,2]
[369409420,1751567445990,-503.36801097,0.00017371,2]
[369409422,1751567445999,-1434.10880368,0.00017515,2]
[369409424,1751567446008,-460.0,0.00017534,2]
[369409426,1751567446017,-153.28,0.00017534,2]
[369409428,1751567446026,-460.0,0.00017534,2]
[369409430,1751567446035,-579.99,0.00017534,2]
[369409432,1751567446044,-460.0,0.00017534,2]
[369409433,1751567446053,-460.0,0.00017534,2]
[369409436,1751567446063,-460.0,0.00017534,2]
[369409438,1751567446072,-460.0,0.00017534,2]
[369409440,1751567446081,-428.67,0.00017534,2]
[369409441,1751567446091,-1068.95,0.00017534,2]
[369409444,1751567446100,-1055.49,0.00017534,2]
[369409446,1751567446111,-1922.23,0.00017534,2]
[369409448,1751567446121,-460.0,0.00017534,2]
[369409450,1751567446130,-635.56,0.00017534,2]
[369409452,1751567446139,-693.32,0.00017534,2]
[369409454,1751567446149,-193.49821002,0.00017534,2]
[369409456,1751567446158,-460.0,0.00017534,2]
[369409458,1751567446168,-460.0,0.00017534,2]
[369409460,1751567446178,-460.0,0.00017534,2]
[369409462,1751567446191,-460.0,0.00017534,2]
[369409464,1751567446200,-460.0,0.00017534,2]
[369409466,1751567446210,-1864.74,0.00017534,2]
[369409468,1751567446219,-460.0,0.00017534,2]
[369409470,1751567446229,-617.61,0.00017534,2]
[369409472,1751567446239,-1861.86,0.00017534,2]
[369409474,1751567446248,-460.0,0.00017534,2]
[369409476,1751567446258,-460.0,0.00017534,2]
[369409478,1751567446268,-460.0,0.00017534,2]
[369409480,1751567446278,-1710.4,0.00017534,2]
[369409482,1751567446287,-460.0,0.00017534,2]
[369409484,1751567446296,-1849.98,0.00017534,2]
[369409486,1751567446306,-460.0,0.00017534,2]
[369409488,1751567446315,-460.0,0.00017534,2]
[369409490,1751567446325,-179.02938201,0.00017534,2]
[369409492,1751567446334,-460.0,0.00017534,2]
[369409494,1751567446344,-460.0,0.00017534,2]
[369409496,1751567446353,-983.8,0.00017534,2]
[369409498,1751567446363,-1354.72,0.00017534,2]
[369409500,1751567446372,-711.2,0.00017534,2]
[369409502,1751567446382,-460.0,0.00017534,2]
[369409505,1751567446392,-551.68,0.00017534,2]
[369409507,1751567446401,-460.0,0.00017534,2]
[369409509,1751567446410,-460.0,0.00017534,2]
[369409511,1751567446419,-541.33,0.00017534,2]
[369409513,1751567446428,-460.0,0.00017534,2]
[369409515,1751567446437,-1214.98,0.00017534,2]
[369409517,1751567446447,-460.0,0.00017534,2]
[369409519,1751567446456,-2524.08,0.00017534,2]
[369409521,1751567446465,-460.0,0.00017534,2]
[369409523,1751567446474,-2694.57,0.00017534,2]
[369409524,1751567446484,-460.0,0.00017534,2]
[369409527,1751567446493,-571.11,0.00017534,2]
[369409528,1751567446503,-460.0,0.00017534,2]
[369409531,1751567446514,-460.0,0.00017534,2]
[369409533,1751567446523,-460.0,0.00017534,2]
[369409535,1751567446532,-460.0,0.00017534,2]
[369409537,1751567446541,-1000.0,0.00017626,2]
[369409539,1751567446550,-1000.0,0.000177,2]
[369409541,1751567446560,-1000.0,0.000177,2]
[369409543,1751567446570,-1312.24886736,0.00017708,2]
[369409545,1751567446579,-151.0,0.00017808,2]
[369409547,1751567446588,-460.0,0.00017808,2]
[369409549,1751567446598,-151.0,0.00017808,2]
[369409551,1751567446608,-460.0,0.00017808,2]
[369409553,1751567446618,-579.99,0.00017808,2]
[369409555,1751567446628,-226.37,0.00017808,2]
[369409557,1751567446638,-460.0,0.00017808,2]
[369409559,1751567446648,-299.74,0.00017808,2]
[369409561,1751567446657,-1068.95,0.00017808,2]
[369409563,1751567446666,-1055.49,0.00017808,2]
[369409565,1751567446676,-1922.23,0.00017808,2]
[369409567,1751567446685,-635.56,0.00017808,2]
[369409569,1751567446694,-693.32,0.00017808,2]
[369409571,1751567446703,-460.0,0.00017808,2]
[369409573,1751567446712,-460.0,0.00017808,2]
[369409575,1751567446721,-460.0,0.00017808,2]
[369409577,1751567446731,-1864.74,0.00017808,2]
[369409579,1751567446740,-617.61,0.00017808,2]
[369409581,1751567446749,-1861.86,0.00017808,2]
[369409583,1751567446758,-460.0,0.00017808,2]
[369409585,1751567446767,-194.27738227,0.00017808,2]
[369409587,1751567446780,-265.72261773,0.00017808,2]
[369409589,1751567446789,-36.27738227,0.00017808,2]
[369409591,1751567446800,-423.72261773,0.00017808,2]
[369409593,1751567446810,-1710.4,0.00017808,2]
[369409595,1751567446819,-460.0,0.00017808,2]
[369409597,1751567446829,-1849.98,0.00017808,2]
[369409599,1751567446839,-460.0,0.00017808,2]
[369409601,1751567446848,-95.89738227,0.00017808,2]
[369413712,1751567795481,204.070646,0.00013699,2]
[369413714,1751568438132,-333.99300406,0.00016159,2]
[369413715,1751568438154,-363.02615604,0.00016337,2]
[369413728,1751568632163,-1030.20333329,0.00016337,2]
[369413729,1751568632173,-574.99243859,0.00016338,2]
[369413730,1751568632182,-1200.0,0.00016426,2]
[369413731,1751568632191,-300.0,0.00016426,2]
[369413732,1751568632202,-300.0,0.00016426,2]
[369413733,1751568632211,-300.0,0.00016426,2]
[369413734,1751568632220,-525.8900668,0.00016428,2]
[369413767,1751568638160,-500.0,0.00016427,2]
[369413769,1751568638170,-154.34875412,0.00016427,2]
[369413771,1751568638179,-324.54686601,0.00016427,2]
[369413773,1751568638189,-212.80605402,0.00016427,2]
[369413775,1751568638198,-151.0,0.00016428,2]
[369413777,1751568638208,-151.0,0.00016428,2]
[369413779,1751568638217,-151.0,0.00016428,2]
[369413781,1751568638227,-151.0,0.00016428,2]
[369413783,1751568638236,-151.0,0.00016428,2]
[369413785,1751568638255,-151.0,0.00016428,2]
[369413787,1751568638264,-49474.1099332,0.00016428,2]
[369413790,1751568638273,-575.780729,0.00016437,2]
[369413792,1751568638282,-165.39990893,0.00016438,2]
[369413795,1751568638291,-460.0,0.00016438,2]
[369413798,1751568638300,-460.0,0.00016438,2]
[369413801,1751568638309,-460.0,0.00016438,2]
[369413804,1751568638319,-460.0,0.00016438,2]
[369413807,1751568638329,-491.85422467,0.00016438,2]
[369413809,1751568638338,-460.0,0.00016438,2]
[369413811,1751568638347,-460.0,0.00016438,2]
[369413813,1751568638356,-460.0,0.00016438,2]
[369413816,1751568638365,-460.0,0.00016438,2]
[369413818,1751568638375,-460.0,0.00016438,2]
[369413820,1751568638385,-452.47968654,0.00016438,2]
[369413822,1751568638394,-323.94465814,0.00016438,2]
[369413824,1751568638404,-507.91,0.00016438,2]
[369413826,1751568638413,-460.0,0.00016438,2]
[369413828,1751568638423,-492.02718125,0.00016438,2]
[369413830,1751568638432,-519.61467478,0.00016438,2]
[369413832,1751568638442,-460.0,0.00016438,2]
[369413834,1751568638451,-460.0,0.00016438,2]
[369413836,1751568638461,-460.0,0.00016438,2]
[369413838,1751568638470,-460.0,0.00016438,2]
[369413840,1751568638479,-460.0,0.00016438,2]
[369413842,1751568638488,-460.0,0.00016438,2]
[369413844,1751568638497,-460.0,0.00016438,2]
[369413846,1751568638506,-460.0,0.00016438,2]
[369413848,1751568638515,-460.0,0.00016438,2]
[369413850,1751568638524,-460.0,0.00016438,2]
[369413852,1751568638534,-460.0,0.00016438,2]
[369413854,1751568638543,-460.0,0.00016438,2]
[369413856,1751568638552,-460.0,0.00016438,2]
[369413858,1751568638562,-460.0,0.00016438,2]
[369413860,1751568638571,-460.0,0.00016438,2]
[369413862,1751568638581,-460.0,0.00016438,2]
[369413864,1751568638590,-460.0,0.00016438,2]
[369413866,1751568638599,-460.0,0.00016438,2]
[369413868,1751568638609,-460.0,0.00016438,2]
[369413870,1751568638618,-460.0,0.00016438,2]
[369413872,1751568638627,-460.0,0.00016438,2]
[369413874,1751568638637,-311.98976591,0.00016438,2]
[369413876,1751568638646,-460.0,0.00016438,2]
[369413878,1751568638655,-460.0,0.00016438,2]
[369413880,1751568638664,-460.0,0.00016438,2]
[369413882,1751568638674,-437.94983703,0.00016438,2]
[369413884,1751568638686,-460.0,0.00016438,2]
[369413886,1751568638695,-460.0,0.00016438,2]
[369413888,1751568638705,-322.40624098,0.00016438,2]
[369413890,1751568638715,-460.0,0.00016438,2]
[369413892,1751568638726,-460.0,0.00016438,2]
[369413894,1751568638735,-460.0,0.00016438,2]
[369413896,1751568638745,-322.57550503,0.00016438,2]
[369413898,1751568638755,-460.0,0.00016438,2]
[369413900,1751568638765,-460.0,0.00016438,2]
[369413902,1751568638775,-153.56677366,0.00016438,2]
[369413904,1751568638784,-531.75625788,0.00016438,2]
[369413906,1751568638793,-460.0,0.00016438,2]
[369413908,1751568638803,-460.0,0.00016438,2]
[369413910,1751568638812,-460.0,0.00016438,2]
[369413912,1751568638822,-460.0,0.00016438,2]
[369413914,1751568638831,-460.0,0.00016438,2]
[369413916,1751568638840,-460.0,0.00016438,2]
[369413918,1751568638850,-460.0,0.00016438,2]
[369413920,1751568638859,-460.0,0.00016438,2]
[369413922,1751568638868,-460.0,0.00016438,2]
[369413924,1751568638878,-460.0,0.00016438,2]
[369413926,1751568638887,-460.0,0.00016438,2]
[369413928,1751568638897,-460.0,0.00016438,2]
[369413930,1751568638906,-460.0,0.00016438,2]
[369413932,1751568638916,-460.0,0.00016438,2]
[369413934,1751568638925,-460.0,0.00016438,2]
[369413936,1751568638935,-557.32421916,0.00016438,2]
[369413938,1751568638943,-460.0,0.00016438,2]
[369413940,1751568638953,-460.0,0.00016438,2]
[369413942,1751568638962,-460.0,0.00016438,2]
[369413944,1751568638971,-460.0,0.00016438,2]
[369413946,1751568638980,-460.0,0.00016438,2]
[369413948,1751568638990,-460.0,0.00016438,2]
[369413950,1751568638999,-460.0,0.00016438,2]
[369413952,1751568639009,-460.0,0.00016438,2]
[369413954,1751568639018,-460.0,0.00016438,2]
[369413956,1751568639027,-460.0,0.00016438,2]
[369413958,1751568639037,-460.0,0.00016438,2]
[369413960,1751568639046,-500.0,0.00016438,2]
[369413962,1751568639055,-460.0,0.00016438,2]
[369413964,1751568639064,-500.0,0.00016438,2]
[369413966,1751568639073,-460.0,0.00016438,2]
[369413968,1751568639083,-467.35975145,0.00016438,2]
[369413970,1751568639091,-460.0,0.00016438,2]
[369413972,1751568639100,-460.0,0.00016438,2]
[369413974,1751568639110,-460.0,0.00016438,2]
[369413976,1751568639119,-460.0,0.00016438,2]
[369413978,1751568639129,-460.0,0.00016438,2]
[369413980,1751568639138,-460.0,0.00016438,2]
[369413982,1751568639147,-460.0,0.00016438,2]
[369413984,1751568639156,-460.0,0.00016438,2]
[369413986,1751568639165,-467.72,0.00016438,2]
[369413988,1751568639175,-460.0,0.00016438,2]
[369413990,1751568639184,-460.0,0.00016438,2]
[369413992,1751568639194,-460.0,0.00016438,2]
[369413994,1751568639204,-460.0,0.00016438,2]
[369413996,1751568639214,-665.21,0.00016438,2]
[369413998,1751568639223,-460.0,0.00016438,2]
[369414000,1751568639232,-460.0,0.00016438,2]
[369414002,1751568639241,-460.0,0.00016438,2]
[369414004,1751568639251,-1733.49,0.00016438,2]
[369414006,1751568639260,-307.24973234,0.00016438,2]
[369414008,1751568639269,-460.0,0.00016438,2]
[369414010,1751568639279,-460.0,0.00016438,2]
[369414012,1751568639288,-1778.48,0.00016438,2]
[369414014,1751568639298,-460.0,0.00016438,2]
[369414016,1751568639307,-474.95382324,0.00016438,2]
[369414018,1751568639316,-460.0,0.00016438,2]
[369414020,1751568639325,-460.0,0.00016438,2]
[369414022,1751568639334,-460.0,0.00016438,2]
[369414024,1751568639345,-460.0,0.00016438,2]
[369414026,1751568639355,-460.0,0.00016438,2]
[369414028,1751568639364,-460.0,0.00016438,2]
[369414030,1751568639375,-460.0,0.00016438,2]
[369414032,1751568639385,-460.0,0.00016438,2]
[369414034,1751568639395,-460.0,0.00016438,2]
[369414036,1751568639404,-460.0,0.00016438,2]
[369414038,1751568639414,-460.0,0.00016438,2]
[369414040,1751568639423,-460.0,0.00016438,2]
[369414042,1751568639432,-460.0,0.00016438,2]
[369414044,1751568639442,-460.0,0.00016438,2]
[369414045,1751568639453,-460.0,0.00016438,2]
[369414047,1751568639462,-460.0,0.00016438,2]
[369414049,1751568639472,-460.0,0.00016438,2]
[369414051,1751568639482,-583.06,0.00016438,2]
[369414053,1751568639491,-460.0,0.00016438,2]
[369414055,1751568639502,-460.0,0.00016438,2]
[369414057,1751568639511,-1713.0,0.00016438,2]
[369414059,1751568639520,-460.0,0.00016438,2]
[369414061,1751568639530,-460.0,0.00016438,2]
[369414063,1751568639539,-1238.44,0.00016438,2]
[369414065,1751568639549,-460.0,0.00016438,2]
[369414067,1751568639558,-460.0,0.00016438,2]
[369414069,1751568639567,-460.0,0.00016438,2]
[369414071,1751568639576,-460.0,0.00016438,2]
[369414073,1751568639586,-460.0,0.00016438,2]
[369414075,1751568639595,-460.0,0.00016438,2]
[369414077,1751568639604,-460.0,0.00016438,2]
[369414079,1751568639614,-1617.81,0.00016438,2]
[369414081,1751568639624,-490.6203728,0.00016438,2]
[369414083,1751568639633,-460.0,0.00016438,2]